fUSD/lending_fUSD_20260620
["ID","MTS","AMOUNT","RATE_DAILY","PERIOD"]
[425771650,1781887511000,-281.63416477,0.00037922,120]
[425771649,1781887511000,-500.0,0.00037922,120]
[425771655,1781887511000,-736.57664027,0.00037922,60]
[425771652,1781887511000,-736.57664027,0.00037922,60]
[425771648,1781887511000,-500.0,0.00037922,120]
[425771647,1781887511000,-500.0,0.00037922,120]
[425771646,1781887511000,-500.0,0.00037922,120]
[425771645,1781887511000,-500.0,0.00037922,120]
[425771658,1781887511000,-736.57664027,0.00037922,60]
[425771651,1781887511000,-736.57664027,0.00037922,60]
[425771669,1781887512000,-736.57664027,0.00037922,60]
[425771675,1781887512000,-736.57664027,0.00037922,60]
[425771674,1781887512000,-736.57664027,0.00037922,60]
[425771676,1781887512000,-736.57664027,0.00037922,60]
[425771671,1781887512000,-736.57664027,0.00037922,60]
[425771673,1781887512000,-736.57664027,0.00037922,60]
[425771670,1781887512000,-736.57664027,0.00037922,60]
[425771672,1781887512000,-736.57664027,0.00037922,60]
[425771666,1781887512000,-736.57664027,0.00037922,60]
[425771660,1781887512000,-736.57664027,0.00037922,60]
[425771667,1781887512000,-736.57664027,0.00037922,60]
[425771665,1781887512000,-736.57664027,0.00037922,60]
[425771664,1781887512000,-736.57664027,0.00037922,60]
[425771662,1781887512000,-736.57664027,0.00037922,60]
[425771663,1781887512000,-736.57664027,0.00037922,60]
[425771661,1781887512000,-736.57664027,0.00037922,60]
[425771678,1781887512000,-736.57664027,0.00037922,60]
[425771659,1781887512000,-736.57664027,0.00037922,60]
[425771668,1781887512000,-736.57664027,0.00037922,60]
[425771679,1781887512000,-736.57664027,0.00037922,60]
[425771677,1781887512000,-736.57664027,0.00037922,60]
[425771681,1781887512000,-5000.0,0.00037922,60]
[425771700,1781887512000,-603.26,0.00037922,120]
[425771680,1781887512000,-736.57664027,0.00037922,60]
[425771699,1781887512000,-603.26,0.00037922,120]
[425771698,1781887512000,-603.26,0.00037922,120]
[425771697,1781887512000,-603.26,0.00037922,120]
[425771696,1781887512000,-603.26,0.00037922,120]
[425771695,1781887512000,-603.26,0.00037922,120]
[425771692,1781887512000,-1127.0,0.00037922,30]
[425771693,1781887512000,-603.26,0.00037922,120]
[425771691,1781887512000,-1127.0,0.00037922,30]
[425771694,1781887512000,-603.26,0.00037922,120]
[425771688,1781887512000,-1127.0,0.00037922,30]
[425771690,1781887512000,-150.0,0.00037922,120]
[425771684,1781887512000,-2985.45,0.00037922,60]
[425771683,1781887512000,-5000.0,0.00037922,60]
[425771686,1781887512000,-487.0,0.00037922,120]
[425771682,1781887512000,-5000.0,0.00037922,60]
[425771687,1781887512000,-530.74,0.00037922,120]
[425771689,1781887512000,-1127.0,0.00037922,30]
[425771685,1781887512000,-487.0,0.00037922,120]
[425771711,1781887513000,-603.26,0.00037922,120]
[425771717,1781887513000,-603.26,0.00037922,120]
[425771718,1781887513000,-603.26,0.00037922,120]
[425771716,1781887513000,-603.26,0.00037922,120]
[425771715,1781887513000,-603.26,0.00037922,120]
[425771714,1781887513000,-603.26,0.00037922,120]
[425771713,1781887513000,-603.26,0.00037922,120]
[425771712,1781887513000,-603.26,0.00037922,120]
[425771709,1781887513000,-603.26,0.00037922,120]
[425771703,1781887513000,-603.26,0.00037922,120]
[425771708,1781887513000,-1000.0,0.00037922,60]
[425771707,1781887513000,-603.26,0.00037922,120]
[425771705,1781887513000,-603.26,0.00037922,120]
[425771706,1781887513000,-603.26,0.00037922,120]
[425771704,1781887513000,-603.26,0.00037922,120]
[425771702,1781887513000,-603.26,0.00037922,120]
[425771701,1781887513000,-603.26,0.00037922,120]
[425771719,1781887513000,-603.26,0.00037922,120]
[425771710,1781887513000,-603.26,0.00037922,120]
[425771720,1781887513000,-1000.0,0.00037922,30]
[425771740,1781887513000,-603.26,0.00037922,120]
[425771721,1781887513000,-603.26,0.00037922,120]
[425771722,1781887513000,-603.26,0.00037922,120]
[425771741,1781887513000,-603.26,0.00037922,120]
[425771739,1781887513000,-162.0,0.00037922,120]
[425771738,1781887513000,-603.26,0.00037922,120]
[425771737,1781887513000,-603.26,0.00037922,120]
[425771735,1781887513000,-603.26,0.00037922,120]
[425771736,1781887513000,-572.12,0.00037922,120]
[425771734,1781887513000,-572.12,0.00037922,120]
[425771733,1781887513000,-572.12,0.00037922,120]
[425771742,1781887513000,-603.26,0.00037922,120]
[425771731,1781887513000,-4353.48,0.00037922,120]
[425771732,1781887513000,-603.26,0.00037922,120]
[425771724,1781887513000,-4353.48,0.00037922,120]
[425771725,1781887513000,-603.26,0.00037922,120]
[425771726,1781887513000,-603.26,0.00037922,120]
[425771723,1781887513000,-603.26,0.00037922,120]
[425771727,1781887513000,-603.26,0.00037922,120]
[425771729,1781887513000,-603.26,0.00037922,120]
[425771730,1781887513000,-603.26,0.00037922,120]
[425771728,1781887513000,-603.26,0.00037922,120]
[425771753,1781887514000,-603.26,0.00037922,120]
[425771759,1781887514000,-603.26,0.00037922,120]
[425771756,1781887514000,-500.0,0.00037922,120]
[425771757,1781887514000,-603.26,0.00037922,120]
[425771755,1781887514000,-603.26,0.00037922,120]
[425771752,1781887514000,-3056.0,0.00037922,120]
[425771751,1781887514000,-603.26,0.00037922,120]
[425771754,1781887514000,-603.26,0.00037922,120]
[425771746,1781887514000,-603.26,0.00037922,120]
[425771750,1781887514000,-500.0,0.00037922,120]
[425771749,1781887514000,-603.26,0.00037922,120]
[425771747,1781887514000,-1000.0,0.00037922,60]
[425771745,1781887514000,-603.26,0.00037922,120]
[425771744,1781887514000,-603.26,0.00037922,120]
[425771743,1781887514000,-500.0,0.00037922,120]
[425771758,1781887514000,-603.26,0.00037922,120]
[425771748,1781887514000,-603.26,0.00037922,120]
[425771761,1781887514000,-603.26,0.00037922,120]
[425771760,1781887514000,-500.0,0.00037922,120]
[425771762,1781887514000,-603.26,0.00037922,120]
[425771779,1781887514000,-603.26,0.00037922,120]
[425771778,1781887514000,-500.0,0.00037922,120]
[425771777,1781887514000,-603.26,0.00037922,120]
[425771776,1781887514000,-603.26,0.00037922,120]
[425771775,1781887514000,-603.26,0.00037922,120]
[425771773,1781887514000,-445.17,0.00037922,120]
[425771772,1781887514000,-603.26,0.00037922,120]
[425771771,1781887514000,-603.26,0.00037922,120]
[425771774,1781887514000,-372.9824,0.00037922,120]
[425771770,1781887514000,-603.26,0.00037922,120]
[425771767,1781887514000,-350.0,0.00037922,120]
[425771766,1781887514000,-603.26,0.00037922,120]
[425771768,1781887514000,-500.0,0.00037922,120]
[425771765,1781887514000,-603.26,0.00037922,120]
[425771764,1781887514000,-603.26,0.00037922,120]
[425771763,1781887514000,-603.26,0.00037922,120]
[425771769,1781887514000,-603.26,0.00037922,120]
[425771790,1781887515000,-603.26,0.00037922,120]
[425771796,1781887515000,-603.26,0.00037922,120]
[425771795,1781887515000,-603.26,0.00037922,120]
[425771794,1781887515000,-603.26,0.00037922,120]
[425771792,1781887515000,-603.26,0.00037922,120]
[425771793,1781887515000,-500.0,0.00037922,120]
[425771791,1781887515000,-603.26,0.00037922,120]
[425771788,1781887515000,-1441.0,0.00037922,120]
[425771780,1781887515000,-603.26,0.00037922,120]
[425771787,1781887515000,-603.26,0.00037922,120]
[425771784,1781887515000,-2973.5502,0.00037922,120]
[425771786,1781887515000,-603.26,0.00037922,120]
[425771785,1781887515000,-500.0,0.00037922,120]
[425771783,1781887515000,-1000.0,0.00037922,30]
[425771782,1781887515000,-603.26,0.00037922,120]
[425771781,1781887515000,-603.26,0.00037922,120]
[425771798,1781887515000,-603.26,0.00037922,120]
[425771789,1781887515000,-603.26,0.00037922,120]
[425771799,1781887515000,-500.0,0.00037922,120]
[425771797,1781887515000,-603.26,0.00037922,120]
[425771819,1781887515000,-1500.0,0.00037922,120]
[425771801,1781887515000,-603.26,0.00037922,120]
[425771818,1781887515000,-1000.0,0.00037922,30]
[425771816,1781887515000,-500.0,0.00037922,120]
[425771817,1781887515000,-2691.0702893,0.00037922,30]
[425771815,1781887515000,-163.0,0.00037922,120]
[425771812,1781887515000,-500.0,0.00037922,120]
[425771813,1781887515000,-3607.51883381,0.00037922,60]
[425771811,1781887515000,-500.0,0.00037922,120]
[425771809,1781887515000,-1000.0,0.00037922,60]
[425771814,1781887515000,-500.0,0.00037922,120]
[425771808,1781887515000,-500.0,0.00037922,120]
[425771810,1781887515000,-500.0,0.00037922,120]
[425771802,1781887515000,-603.26,0.00037922,120]
[425771803,1781887515000,-603.26,0.00037922,120]
[425771806,1781887515000,-1022891.0,0.00037922,120]
[425771800,1781887515000,-603.26,0.00037922,120]
[425771805,1781887515000,-175.23,0.00037922,120]
[425771807,1781887515000,-500.0,0.00037922,120]
[425771804,1781887515000,-603.26,0.00037922,120]
[425771828,1781887516000,-161.26425738,0.00037922,120]
[425771839,1781887516000,-1101.2129233,0.00037922,60]
[425771836,1781887516000,-1101.2129233,0.00037922,60]
[425771835,1781887516000,-604.10982886,0.00037922,120]
[425771833,1781887516000,-1101.2129233,0.00037922,60]
[425771834,1781887516000,-161.26425738,0.00037922,120]
[425771832,1781887516000,-604.10982886,0.00037922,120]
[425771830,1781887516000,-1101.2129233,0.00037922,60]
[425771831,1781887516000,-161.26425738,0.00037922,120]
[425771837,1781887516000,-161.26425738,0.00037922,120]
[425771825,1781887516000,-315.0,0.00037922,120]
[425771827,1781887516000,-1101.2129233,0.00037922,60]
[425771826,1781887516000,-500.0,0.00037922,120]
[425771824,1781887516000,-500.0,0.00037922,120]
[425771820,1781887516000,-500.0,0.00037922,120]
[425771823,1781887516000,-500.0,0.00037922,120]
[425771822,1781887516000,-318.07,0.00037922,120]
[425771821,1781887516000,-1335.16,0.00037922,120]
[425771829,1781887516000,-604.10982886,0.00037922,120]
[425771838,1781887516000,-604.10982886,0.00037922,120]
[425771859,1781887516000,-1101.2129233,0.00037922,60]
[425771842,1781887516000,-161.26425738,0.00037922,120]
[425771840,1781887516000,-161.26425738,0.00037922,120]
[425771857,1781887516000,-1101.2129233,0.00037922,60]
[425771858,1781887516000,-604.10982886,0.00037922,120]
[425771855,1781887516000,-604.10982886,0.00037922,120]
[425771856,1781887516000,-1101.2129233,0.00037922,60]
[425771853,1781887516000,-1101.2129233,0.00037922,60]
[425771854,1781887516000,-1000.0,0.00037922,30]
[425771852,1781887516000,-604.10982886,0.00037922,120]
[425771851,1781887516000,-1101.2129233,0.00037922,60]
[425771860,1781887516000,-604.10982886,0.00037922,120]
[425771849,1781887516000,-604.10982886,0.00037922,120]
[425771850,1781887516000,-161.26425738,0.00037922,120]
[425771843,1781887516000,-604.10982886,0.00037922,120]
[425771844,1781887516000,-1101.2129233,0.00037922,60]
[425771841,1781887516000,-604.10982886,0.00037922,120]
[425771847,1781887516000,-1101.2129233,0.00037922,60]
[425771846,1781887516000,-604.10982886,0.00037922,120]
[425771848,1781887516000,-500.0,0.00037922,120]
[425771845,1781887516000,-161.26425738,0.00037922,120]
[425771877,1781887517000,-1101.2129233,0.00037922,60]
[425771872,1781887517000,-1101.2129233,0.00037922,60]
[425771875,1781887517000,-1101.2129233,0.00037922,60]
[425771876,1781887517000,-500.0,0.00037922,120]
[425771874,1781887517000,-566.77,0.00037922,120]
[425771873,1781887517000,-1101.2129233,0.00037922,60]
[425771871,1781887517000,-1101.2129233,0.00037922,60]
[425771869,1781887517000,-1101.2129233,0.00037922,60]
[425771866,1781887517000,-1101.2129233,0.00037922,60]
[425771865,1781887517000,-500.0,0.00037922,120]
[425771868,1781887517000,-604.10982886,0.00037922,120]
[425771867,1781887517000,-1101.2129233,0.00037922,60]
[425771864,1781887517000,-1101.2129233,0.00037922,60]
[425771863,1781887517000,-1101.2129233,0.00037922,60]
[425771861,1781887517000,-1101.2129233,0.00037922,60]
[425771862,1781887517000,-604.10982886,0.00037922,120]
[425771880,1781887517000,-1101.2129233,0.00037922,60]
[425771870,1781887517000,-604.10982886,0.00037922,120]
[425771879,1781887517000,-1101.2129233,0.00037922,60]
[425771884,1781887517000,-728.7,0.00037922,120]
[425771881,1781887517000,-566.77,0.00037922,120]
[425771878,1781887517000,-566.77,0.00037922,120]
[425771897,1781887517000,-1101.2129233,0.00037922,60]
[425771896,1781887517000,-569.29713493,0.00037922,120]
[425771895,1781887517000,-1101.2129233,0.00037922,60]
[425771893,1781887517000,-1101.2129233,0.00037922,60]
[425771894,1781887517000,-1101.2129233,0.00037922,60]
[425771892,1781887517000,-1101.2129233,0.00037922,60]
[425771891,1781887517000,-1101.2129233,0.00037922,60]
[425771898,1781887517000,-1101.2129233,0.00037922,60]
[425771890,1781887517000,-1101.2129233,0.00037922,60]
[425771888,1781887517000,-1101.2129233,0.00037922,60]
[425771886,1781887517000,-1101.2129233,0.00037922,60]
[425771887,1781887517000,-500.0,0.00037922,120]
[425771885,1781887517000,-1101.2129233,0.00037922,60]
[425771883,1781887517000,-1101.2129233,0.00037922,60]
[425771882,1781887517000,-1101.2129233,0.00037922,60]
[425771899,1781887517000,-1101.2129233,0.00037922,60]
[425771889,1781887517000,-1101.2129233,0.00037922,60]
[425771912,1781887518000,-496.37,0.00037922,30]
[425771913,1781887518000,-496.37,0.00037922,30]
[425771911,1781887518000,-496.37,0.00037922,30]
[425771909,1781887518000,-1101.2129233,0.00037922,60]
[425771908,1781887518000,-1101.2129233,0.00037922,60]
[425771910,1781887518000,-496.37,0.00037922,30]
[425771907,1781887518000,-1101.2129233,0.00037922,60]
[425771903,1781887518000,-1101.2129233,0.00037922,60]
[425771905,1781887518000,-1101.2129233,0.00037922,60]
[425771904,1781887518000,-1000.0,0.00037922,120]
[425771902,1781887518000,-1101.2129233,0.00037922,60]
[425771901,1781887518000,-1101.2129233,0.00037922,60]
[425771900,1781887518000,-1101.2129233,0.00037922,60]
[425771915,1781887518000,-496.37,0.00037922,30]
[425771906,1781887518000,-1101.2129233,0.00037922,60]
[425771914,1781887518000,-724.76,0.00037922,120]
[425771917,1781887518000,-496.37,0.00037922,30]
[425771930,1781887518000,-496.37,0.00037922,30]
[425771918,1781887518000,-496.37,0.00037922,30]
[425771934,1781887518000,-496.37,0.00037922,30]
[425771933,1781887518000,-496.37,0.00037922,30]
[425771931,1781887518000,-1000.0,0.00037922,60]
[425771929,1781887518000,-496.37,0.00037922,30]
[425771928,1781887518000,-496.37,0.00037922,30]
[425771932,1781887518000,-496.37,0.00037922,30]
[425771924,1781887518000,-496.37,0.00037922,30]
[425771927,1781887518000,-496.37,0.00037922,30]
[425771925,1781887518000,-524.0,0.00037922,30]
[425771923,1781887518000,-496.37,0.00037922,30]
[425771921,1781887518000,-496.37,0.00037922,30]
[425771922,1781887518000,-496.37,0.00037922,30]
[425771920,1781887518000,-496.37,0.00037922,30]
[425771919,1781887518000,-496.37,0.00037922,30]
[425771916,1781887518000,-496.37,0.00037922,30]
[425771926,1781887518000,-496.37,0.00037922,30]
[425771945,1781887519000,-496.37,0.00037922,30]
[425771948,1781887519000,-496.37,0.00037922,30]
[425771950,1781887519000,-496.37,0.00037922,30]
[425771953,1781887519000,-496.37,0.00037922,30]
[425771951,1781887519000,-496.37,0.00037922,30]
[425771952,1781887519000,-496.37,0.00037922,30]
[425771947,1781887519000,-496.37,0.00037922,30]
[425771949,1781887519000,-496.37,0.00037922,30]
[425771946,1781887519000,-496.37,0.00037922,30]
[425771937,1781887519000,-496.37,0.00037922,30]
[425771940,1781887519000,-496.37,0.00037922,30]
[425771942,1781887519000,-496.37,0.00037922,30]
[425771941,1781887519000,-496.37,0.00037922,30]
[425771943,1781887519000,-496.37,0.00037922,30]
[425771939,1781887519000,-496.37,0.00037922,30]
[425771936,1781887519000,-496.37,0.00037922,30]
[425771938,1781887519000,-496.37,0.00037922,30]
[425771935,1781887519000,-496.37,0.00037922,30]
[425771944,1781887519000,-496.37,0.00037922,30]
[425771955,1781887519000,-496.37,0.00037922,30]
[425771974,1781887519000,-800.0,0.00037922,120]
[425771956,1781887519000,-496.37,0.00037922,30]
[425771976,1781887519000,-800.0,0.00037922,120]
[425771954,1781887519000,-496.37,0.00037922,30]
[425771973,1781887519000,-1195.79571501,0.00037922,120]
[425771972,1781887519000,-50000.0,0.00037922,60]
[425771971,1781887519000,-248.23,0.00037922,30]
[425771970,1781887519000,-429.47,0.00037922,120]
[425771969,1781887519000,-429.48,0.00037922,120]
[425771968,1781887519000,-429.48,0.00037922,120]
[425771967,1781887519000,-429.48,0.00037922,120]
[425771975,1781887519000,-800.0,0.00037922,120]
[425771966,1781887519000,-429.48,0.00037922,120]
[425771965,1781887519000,-347.16526398,0.00037922,30]
[425771957,1781887519000,-1000.0,0.00037922,60]
[425771960,1781887519000,-164.45200681,0.00037922,120]
[425771958,1781887519000,-1000.0,0.00037922,30]
[425771959,1781887519000,-321.0,0.00037922,120]
[425771963,1781887519000,-1000.0,0.00037922,60]
[425771964,1781887519000,-198.23,0.00037922,30]
[425771961,1781887519000,-735.6018662,0.00037922,120]
[425771962,1781887519000,-1000.0,0.00037922,30]
[425771985,1781887520000,-494.54572316,0.00037922,30]
[425771990,1781887520000,-50000.0,0.00037922,60]
[425771988,1781887520000,-800.0,0.00037922,120]
[425771989,1781887520000,-800.0,0.00037922,120]
[425771986,1781887520000,-800.0,0.00037922,120]
[425771987,1781887520000,-800.0,0.00037922,120]
[425771984,1781887520000,-800.0,0.00037922,120]
[425771980,1781887520000,-800.0,0.00037922,120]
[425771983,1781887520000,-800.0,0.00037922,120]
[425771991,1781887520000,-5000.0,0.00037922,60]
[425771981,1781887520000,-800.0,0.00037922,120]
[425771978,1781887520000,-800.0,0.00037922,120]
[425771979,1781887520000,-800.0,0.00037922,120]
[425771977,1781887520000,-800.0,0.00037922,120]
[425771982,1781887520000,-800.0,0.00037922,120]
[425771992,1781887520000,-5000.0,0.00037922,60]
[425772005,1781887520000,-157.31613189,0.00037922,60]
[425771994,1781887520000,-5000.0,0.00037922,60]
[425771993,1781887520000,-5000.0,0.00037922,60]
[425772010,1781887520000,-50000.0,0.00037922,30]
[425772009,1781887520000,-157.31613189,0.00037922,60]
[425772008,1781887520000,-157.31613189,0.00037922,60]
[425772007,1781887520000,-157.31613189,0.00037922,60]
[425772004,1781887520000,-157.31613189,0.00037922,60]
[425772003,1781887520000,-3150.01,0.00037922,120]
[425772006,1781887520000,-157.31613189,0.00037922,60]
[425772001,1781887520000,-450.05178633,0.00037922,120]
[425771999,1781887520000,-748.86035832,0.00037922,120]
[425772000,1781887520000,-1457.2064,0.00037922,120]
[425771998,1781887520000,-3346.78122032,0.00037922,30]
[425771997,1781887520000,-1450.87026117,0.00037922,120]
[425771996,1781887520000,-163.56802472,0.00037922,120]
[425771995,1781887520000,-5000.0,0.00037922,60]
[425772002,1781887520000,-654.83,0.00037922,120]
[425772021,1781887521000,-1226.99,0.00037922,120]
[425772028,1781887521000,-427.95,0.00037922,120]
[425772025,1781887521000,-5161.14,0.00037922,120]
[425772026,1781887521000,-1000.0,0.00037922,30]
[425772024,1781887521000,-1000.0,0.00037922,30]
[425772023,1781887521000,-1000.0,0.00037922,30]
[425772022,1781887521000,-1000.0,0.00037922,30]
[425772019,1781887521000,-157.31613189,0.00037922,60]
[425772011,1781887521000,-1127.0,0.00037922,30]
[425772018,1781887521000,-2000.0,0.00037922,120]
[425772016,1781887521000,-5000.0,0.00037922,120]
[425772017,1781887521000,-5000.0,0.00037922,120]
[425772015,1781887521000,-3000.0,0.00037922,30]
[425772013,1781887521000,-229.6,0.00037922,120]
[425772012,1781887521000,-5000.0,0.00037922,120]
[425772027,1781887521000,-528.36,0.00037922,60]
[425772020,1781887521000,-2908.89599283,0.00037922,60]
[425772029,1781887521000,-1522.35,0.00037922,120]
[425772014,1781887521000,-15625.0,0.00037922,30]
[425772032,1781887521000,-1522.35,0.00037922,120]
[425772048,1781887521000,-543.69515713,0.00037922,60]
[425772047,1781887521000,-543.69515713,0.00037922,60]
[425772045,1781887521000,-543.69515713,0.00037922,60]
[425772044,1781887521000,-543.69515713,0.00037922,60]
[425772043,1781887521000,-543.69515713,0.00037922,60]
[425772042,1781887521000,-543.69515713,0.00037922,60]
[425772039,1781887521000,-1127.0,0.00037922,30]
[425772041,1781887521000,-543.69515713,0.00037922,60]
[425772046,1781887521000,-543.69515713,0.00037922,60]
[425772040,1781887521000,-6689.13250651,0.00037922,120]
[425772038,1781887521000,-100000.0,0.00037922,30]
[425772031,1781887521000,-1522.35,0.00037922,120]
[425772033,1781887521000,-1522.35,0.00037922,120]
[425772030,1781887521000,-1522.35,0.00037922,120]
[425772035,1781887521000,-1522.35,0.00037922,120]
[425772037,1781887521000,-1375.18449933,0.00037922,120]
[425772036,1781887521000,-1522.35,0.00037922,120]
[425772034,1781887521000,-1522.35,0.00037922,120]
[425772062,1781887522000,-5000.0,0.00037922,60]
[425772059,1781887522000,-197.84508926,0.00037922,120]
[425772057,1781887522000,-591.08,0.00037922,120]
[425772060,1781887522000,-5000.0,0.00037922,60]
[425772058,1781887522000,-150.0,0.00037922,120]
[425772055,1781887522000,-100000.0,0.00037922,30]
[425772054,1781887522000,-5124.51,0.00037922,120]
[425772051,1781887522000,-543.69515713,0.00037922,60]
[425772053,1781887522000,-355.43,0.00037922,120]
[425772050,1781887522000,-543.69515713,0.00037922,60]
[425772049,1781887522000,-543.69515713,0.00037922,60]
[425772061,1781887522000,-5000.0,0.00037922,60]
[425772056,1781887522000,-2000.0,0.00037922,120]
[425772052,1781887522000,-803.98561328,0.00037922,120]
[425772064,1781887522000,-697.05,0.00037922,60]
[425772066,1781887522000,-389.56,0.00037922,120]
[425772063,1781887522000,-5000.0,0.00037922,60]
[425772076,1781887522000,-66252.33896191,0.00037922,60]
[425772078,1781887522000,-110216.42049968,0.00037922,60]
[425772074,1781887522000,-281.91456711,0.00037922,30]
[425772075,1781887522000,-681.35552287,0.00037922,30]
[425772073,1781887522000,-830.07162436,0.00037922,120]
[425772077,1781887522000,-501.563619,0.00037922,120]
[425772071,1781887522000,-2000.0,0.00037922,120]
[425772070,1781887522000,-994.8499,0.00037922,120]
[425772069,1781887522000,-976.0,0.00037922,120]
[425772068,1781887522000,-195.07,0.00037922,120]
[425772067,1781887522000,-286.73480688,0.00037922,30]
[425772065,1781887522000,-1162.7079807,0.00037922,30]
[425772072,1781887522000,-820.38857234,0.00037922,90]
[425772088,1781887523000,-818.63038373,0.00037922,120]
[425772095,1781887523000,-564.61816545,0.00037922,120]
[425772092,1781887523000,-8258.27312113,0.00037922,30]
[425772093,1781887523000,-1539.07496115,0.00037922,99]
[425772091,1781887523000,-6254.81911519,0.00037922,30]
[425772090,1781887523000,-1190.15594366,0.00037922,30]
[425772089,1781887523000,-1406.98306784,0.00037922,30]
[425772086,1781887523000,-5664.84042268,0.00037922,30]
[425772083,1781887523000,-306.87298231,0.00037922,120]
[425772085,1781887523000,-1583.64739273,0.00037922,30]
[425772087,1781887523000,-426.23887288,0.00037922,30]
[425772082,1781887523000,-160.6746865,0.00037922,120]
[425772081,1781887523000,-1545.12761842,0.00037922,120]
[425772080,1781887523000,-727.96361008,0.00037922,120]
[425772079,1781887523000,-374.11328554,0.00037922,120]
[425772096,1781887523000,-264.21873366,0.00037922,120]
[425772084,1781887523000,-3080.74422454,0.00037922,60]
[425772099,1781887523000,-160.50602486,0.00037922,120]
[425772094,1781887523000,-458.36759327,0.00037922,120]
[425772098,1781887523000,-1161.64,0.00037922,120]
[425772097,1781887523000,-8023.48175654,0.00037922,60]
[425772113,1781887523000,-824.81514356,0.00037922,30]
[425772114,1781887523000,-300.18486222,0.00037922,120]
[425772111,1781887523000,-523.46970606,0.00037922,60]
[425772112,1781887523000,-5526.96802974,0.00037922,30]
[425772110,1781887523000,-409.07504889,0.00037922,120]
[425772108,1781887523000,-202024.65428205,0.00037922,30]
[425772109,1781887523000,-194.98401841,0.00037922,120]
[425772115,1781887523000,-161.13265804,0.00037922,30]
[425772106,1781887523000,-1052.21429908,0.00037922,120]
[425772105,1781887523000,-695.1603245,0.00037922,60]
[425772104,1781887523000,-555.92325684,0.00037922,120]
[425772103,1781887523000,-1212.85830618,0.00037922,30]
[425772102,1781887523000,-186.54736643,0.00037922,120]
[425772101,1781887523000,-640.76308903,0.00037922,90]
[425772100,1781887523000,-207.69002486,0.00037922,30]
[425772116,1781887523000,-356.64024193,0.00037922,120]
[425772107,1781887523000,-323.59966808,0.00037922,30]
[425772130,1781887524000,-348.39843196,0.00037922,120]
[425772132,1781887524000,-354.94919448,0.00037922,120]
[425772131,1781887524000,-812.16835108,0.00037922,30]
[425772129,1781887524000,-664.43671358,0.00037922,30]
[425772127,1781887524000,-342.41589714,0.00037922,30]
[425772128,1781887524000,-320.88803045,0.00037922,120]
[425772126,1781887524000,-21393.30841318,0.00037922,120]
[425772121,1781887524000,-1500.0,0.00037922,60]
[425772124,1781887524000,-283.43121703,0.00037922,120]
[425772123,1781887524000,-1284.42324522,0.00037922,120]
[425772122,1781887524000,-1219.85920963,0.00037922,120]
[425772120,1781887524000,-5000.0,0.00037922,30]
[425772119,1781887524000,-450.19169736,0.00037922,120]
[425772117,1781887524000,-252.79741114,0.00037922,120]
[425772133,1781887524000,-156.63207564,0.00037922,120]
[425772125,1781887524000,-248.1171048,0.00037922,120]
[425772134,1781887524000,-176.0914326,0.00037922,120]
[425772118,1781887524000,-583.56772492,0.00037922,30]
[425772137,1781887524000,-545.36414407,0.00037922,65]
[425772135,1781887524000,-5156.44504901,0.00037922,60]
[425772153,1781887524000,-417.50689112,0.00037922,120]
[425772152,1781887524000,-247.00520473,0.00037922,30]
[425772151,1781887524000,-6136778.11323055,0.00037922,60]
[425772150,1781887524000,-828.63998552,0.00037922,30]
[425772148,1781887524000,-509.91946093,0.00037922,120]
[425772147,1781887524000,-250.53268258,0.00037922,120]
[425772146,1781887524000,-676.40217884,0.00037922,120]
[425772149,1781887524000,-221.14869484,0.00037922,30]
[425772145,1781887524000,-169.39380011,0.00037922,120]
[425772144,1781887524000,-311.19583975,0.00037922,120]
[425772139,1781887524000,-330.96139169,0.00037922,120]
[425772138,1781887524000,-1115.08145,0.00037922,120]